bitfinex-derivatives/quotes_BTCF0:USTF0_20250411
["timestamp","ask_amount","ask_price","bid_price","bid_amount"]
[1744335168381,0.2536712,79769.0,79768.0,0.60389698]
[1744335168582,0.6144712,79769.0,79768.0,0.60389698]
[1744335168976,0.2536712,79769.0,79768.0,0.60389698]
[1744335169276,0.6144712,79769.0,79768.0,0.60389698]
[1744335169578,0.2536712,79769.0,79768.0,0.60389698]
[1744335169769,0.5489712,79769.0,79768.0,0.60389698]
[1744335170081,0.1881712,79769.0,79768.0,0.60389698]
[1744335170373,0.2513712,79769.0,79768.0,0.60389698]
[1744335170578,0.2513712,79769.0,79768.0,0.56266428]
[1744335170879,0.2513712,79769.0,79768.0,0.5626653]
[1744335171278,0.2513712,79769.0,79768.0,0.53042792]
[1744335173680,0.1881712,79769.0,79768.0,0.56332792]
[1744335173876,0.1881712,79769.0,79768.0,0.57993385]
[1744335174279,0.1881712,79769.0,79768.0,0.53042792]
[1744335174475,0.2523712,79769.0,79768.0,0.53042792]
[1744335175081,0.1881712,79769.0,79768.0,0.53042792]
[1744335175288,0.1881712,79769.0,79768.0,0.5789998]
[1744335175589,0.00765704,79773.0,79768.0,1.25198822]
[1744335175787,0.4862456,79770.0,79769.0,0.04707188]
[1744335175988,0.1254456,79770.0,79769.0,0.07877182]
[1744335176290,0.4862456,79770.0,79769.0,0.0619]
[1744335176888,0.1254456,79770.0,79769.0,0.07877585]
[1744335177385,0.1254456,79770.0,79769.0,0.10917585]
[1744335177781,0.1254456,79770.0,79769.0,0.07877585]
[1744335177982,0.4862456,79770.0,79769.0,0.07877585]
[1744335178189,0.4862456,79770.0,79769.0,0.0619]
[1744335179285,0.4862456,79770.0,79769.0,0.73488842]
[1744335179490,0.4862456,79770.0,79769.0,0.70318842]
[1744335179697,0.5486456,79770.0,79769.0,0.70318842]
[1744335181093,0.5486456,79770.0,79769.0,0.63174392]
[1744335181291,0.5486456,79770.0,79746.0,0.59604667]
[1744335181292,0.1254818,79747.0,79746.0,0.59604667]
[1744335181496,0.7216,79747.0,79738.0,0.6733622]
[1744335181691,0.4862944,79739.0,79738.0,0.6733622]
[1744335182388,0.4988459,79739.0,79738.0,0.6733622]
[1744335182698,0.5637459,79739.0,79738.0,0.6733622]
[1744335182902,0.0125515,79739.0,79738.0,0.6733622]
[1744335183104,0.062746,79741.0,79738.0,0.6733622]
[1744335183294,0.1254944,79739.0,79738.0,0.6733622]
[1744335183902,0.0001877,79746.0,79738.0,0.6733622]
[1744335184118,0.1254928,79742.0,79741.0,0.1254889]
[1744335184599,0.1254928,79740.0,79739.0,0.0316]
[1744335185200,0.1254928,79740.0,79739.0,0.1570944]
[1744335185600,0.0001877,79746.0,79739.0,0.0943467]
[1744335185800,0.0001877,79746.0,79745.0,0.1254849]
[1744335186103,0.3608,79755.0,79754.0,0.1254708]
[1744335186306,0.4862692,79755.0,79754.0,0.14299241]
[1744335186490,0.4862692,79755.0,79750.0,1.042738]
[1744335186491,0.1254739,79752.0,79751.0,0.0312]
[1744335186697,0.1254739,79752.0,79751.0,0.08022332]
[1744335186893,0.01280434,79760.0,79755.0,0.062734]
[1744335187097,0.1254613,79760.0,79759.0,0.3608]
[1744335187399,0.1254613,79760.0,79759.0,0.4862629]
[1744335187602,0.0627304,79761.0,79760.0,0.1254613]
[1744335188595,0.0004,79770.0,79769.0,0.1254472]
[1744335190211,0.0004,79770.0,79769.0,0.14169922]
[1744335191003,0.0627126,79783.0,79769.0,0.14169922]
[1744335191004,0.0627153,79780.0,79770.0,0.0627227]
[1744335191310,0.0627153,79780.0,79779.0,0.3608]
[1744335192008,0.0627153,79780.0,79779.0,0.37705202]
[1744335193098,0.0627153,79780.0,79779.0,0.01625202]
[1744335194701,0.0627153,79780.0,79779.0,0.14168352]
[1744335194902,0.0627153,79780.0,79779.0,0.01625202]
[1744335196211,0.0943153,79780.0,79779.0,0.01625202]
[1744335196406,0.4551153,79780.0,79779.0,0.01625202]
[1744335197402,0.4551153,79780.0,79779.0,0.03483512]
[1744335197403,0.0627153,79780.0,79779.0,0.03483512]
[1744335197915,0.0627153,79780.0,79779.0,0.01625202]
[1744335198114,0.0627153,79780.0,79779.0,0.14168352]
[1744335198407,0.0627153,79780.0,79779.0,0.16051142]
[1744335198616,0.0627153,79780.0,79779.0,0.52131142]
[1744335198816,0.0627109,79786.0,79785.0,0.125422]
[1744335199315,0.0627109,79786.0,79785.0,0.14502528]
[1744335199514,0.0627109,79786.0,79785.0,0.14167402]
[1744335199720,0.0627109,79786.0,79785.0,0.01625202]
[1744335200610,0.1254179,79788.0,79787.0,0.0627089]
[1744335200812,0.1254205,79786.0,79785.0,0.1254219]
[1744335201013,0.1254205,79786.0,79780.0,0.0311]
[1744335201014,0.1254267,79782.0,79781.0,0.0627136]
[1744335201211,0.1254267,79782.0,79781.0,0.01960304]
[1744335201412,0.1254283,79781.0,79780.0,0.1565299]
[1744335201715,0.1254283,79781.0,79780.0,0.17613322]
[1744335201915,0.1254283,79781.0,79780.0,0.05070332]
[1744335202109,0.1254283,79781.0,79780.0,0.06826296]
[1744335202310,0.1254283,79781.0,79780.0,0.19369286]
[1744335203221,0.1254283,79781.0,79780.0,0.17408954]
[1744335203517,0.1254283,79781.0,79780.0,0.19369286]
[1744335204508,0.4862156,79790.0,79789.0,0.1254157]
[1744335204713,0.3608,79790.0,79789.0,0.1254157]
[1744335205024,0.3608,79790.0,79789.0,0.14297534]
[1744335205205,0.4862142,79790.0,79789.0,0.14297534]
[1744335205410,0.0315,79799.0,79793.0,0.1254095]
[1744335205616,0.61459701,79800.0,79799.0,0.1254]
[1744335205617,0.1,79800.0,79799.0,0.1254]
[1744335205811,0.1,79800.0,79799.0,0.52336166]
[1744335206714,0.2253985,79800.0,79799.0,0.39796166]
[1744335206915,0.2253985,79800.0,79799.0,0.52336166]
[1744335207110,0.2253985,79800.0,79799.0,0.06886166]
[1744335207309,0.2253985,79800.0,79799.0,0.01755964]
[1744335207817,0.2886985,79800.0,79799.0,0.01755964]
[1744335209111,0.2253985,79800.0,79799.0,0.03715991]
[1744335209614,0.1,79800.0,79799.0,0.52335991]
[1744335210215,0.3608,79820.0,79810.0,0.0626908]
[1744335210422,0.00939193,79835.0,79834.0,0.125345]
[1744335210611,0.00939193,79835.0,79834.0,0.14494527]
[1744335210807,0.00939193,79835.0,79834.0,0.16250491]
[1744335211012,0.26256816,79843.0,79839.0,0.0626682]
[1744335211213,0.1257339,79842.0,79841.0,0.1253341]
[1744335211517,0.0004,79842.0,79841.0,0.14493437]
[1744335211714,0.1257325,79842.0,79841.0,0.03715991]
[1744335213433,0.0004,79842.0,79841.0,0.16248202]
[1744335213620,0.1257325,79842.0,79841.0,0.16248202]
[1744335213820,0.0004,79842.0,79841.0,0.16248202]
[1744335214415,0.0004,79842.0,79841.0,0.41248202]
[1744335215016,0.0626538,79858.0,79857.0,0.1253055]
[1744335215017,0.1253081,79858.0,79857.0,0.1253055]
[1744335215313,0.1253081,79858.0,79857.0,0.03714792]
[1744335215514,0.0626523,79860.0,79857.0,0.16245572]
[1744335215718,0.1253074,79858.0,79857.0,0.14286744]
[1744335215923,0.1253074,79858.0,79857.0,0.03714409]
[1744335216423,0.3608,79863.0,79862.0,0.1253011]
[1744335216620,0.1883458,79866.0,79863.0,0.0626493]
[1744335216926,0.1252964,79865.0,79864.0,0.01958445]
[1744335217121,0.1888964,79865.0,79864.0,0.03714409]
[1744335218427,0.1888964,79865.0,79864.0,0.01755964]
[1744335219625,0.1888964,79865.0,79864.0,0.03714382]
[1744335220412,0.1888964,79865.0,79864.0,0.01755964]
[1744335220619,0.3608,79887.0,79878.0,0.0626379]
[1744335220815,0.0626317,79886.0,79885.0,0.125265]
[1744335221014,0.0312,79889.0,79886.0,0.0301]
[1744335221224,0.0004,79890.0,79889.0,0.1252588]
[1744335221426,0.0004,79890.0,79889.0,0.14483744]
[1744335221928,0.0004,79890.0,79889.0,0.19249708]
[1744335222721,0.1,79900.0,79899.0,0.1252431]
[1744335222927,0.3608,79917.0,79911.0,0.1252243]
[1744335223122,0.3608,79917.0,79911.0,0.14480294]
[1744335223329,0.3608,79917.0,79911.0,0.01957864]
[1744335223529,0.18758117,79912.0,79911.0,0.19336258]
[1744335223834,0.31280387,79912.0,79911.0,0.06813828]
[1744335224327,0.31280387,79912.0,79911.0,0.03713828]
[1744335224518,0.31119769,79912.0,79911.0,0.03713828]
[1744335224723,0.31360696,79912.0,79911.0,0.01755964]
[1744335224931,0.34380696,79912.0,79911.0,0.01755964]
[1744335225130,0.34461005,79912.0,79911.0,0.01755964]
[1744335225331,0.34461005,79912.0,79911.0,0.03713426]
[1744335225637,0.15863506,79912.0,79911.0,0.01755964]
[1744335226232,0.1252337,79905.0,79904.0,0.00018776]
[1744335226531,0.4860337,79905.0,79904.0,0.00018776]
[1744335227228,0.1252509,79894.0,79893.0,0.3608]
[1744335227423,0.1252509,79894.0,79893.0,0.37813723]
[1744335227619,0.0626226,79898.0,79893.0,0.37813723]
[1744335227822,0.0626226,79898.0,79897.0,0.1252462]
[1744335228029,0.1252467,79898.0,79897.0,0.1252444]
[1744335228232,0.12845906,79898.0,79897.0,0.1252444]
[1744335228529,0.00321236,79898.0,79897.0,0.1252444]
[1744335228825,0.1252509,79894.0,79893.0,0.3608]
[1744335229035,0.00321236,79898.0,79897.0,0.1252462]
[1744335229529,0.00321236,79898.0,79897.0,0.16114536]
[1744335229724,0.00321236,79898.0,79897.0,0.19184536]
[1744335230930,0.12845696,79898.0,79897.0,0.06659916]
[1744335231325,0.00321236,79898.0,79897.0,0.19184536]
[1744335231526,0.12845696,79898.0,79897.0,0.17287746]
[1744335231727,0.12845696,79898.0,79897.0,0.04763126]
[1744335232227,0.12845696,79898.0,79897.0,0.0307]
[1744335233032,0.1252556,79891.0,79890.0,0.00018776]
[1744335233239,0.12846796,79891.0,79890.0,0.00018776]
[1744335233542,0.12846796,79891.0,79890.0,0.03318776]
[1744335235241,0.12846796,79891.0,79890.0,0.04992363]
[1744335236442,0.12846796,79891.0,79890.0,0.01692363]
[1744335236936,0.12846796,79891.0,79890.0,0.00018776]
[1744335238531,0.00321236,79891.0,79890.0,0.12544496]
[1744335238727,0.12846796,79891.0,79890.0,0.01671004]
[1744335238931,0.12846796,79891.0,79890.0,0.04911004]
[1744335239136,0.12846796,79891.0,79890.0,0.08001004]
[1744335239631,0.12846796,79891.0,79890.0,0.0973854]
[1744335239941,0.12846796,79891.0,79890.0,0.01671004]
[1744335240639,0.16156796,79891.0,79890.0,0.01671004]
[1744335241144,0.16156796,79891.0,79870.0,0.98]
[1744335241145,0.1252823,79874.0,79873.0,0.0308]
[1744335241339,0.12849466,79874.0,79873.0,0.0308]
[1744335241535,0.12849466,79874.0,79873.0,0.04798948]
[1744335242742,0.12849466,79874.0,79868.0,0.13462015]
[1744335242743,0.1252917,79868.0,79867.0,0.00050083]
[1744335243143,0.14080832,79868.0,79867.0,0.00050083]
[1744335243339,0.14402068,79868.0,79867.0,0.00050083]
[1744335243646,0.20682068,79868.0,79867.0,0.00050083]
[1744335244232,0.20682068,79868.0,79866.0,0.00018776]
[1744335244438,0.20682068,79868.0,79855.0,0.22288926]
[1744335244439,0.1253105,79856.0,79855.0,0.22288926]
[1744335244634,0.4861105,79856.0,79855.0,0.22288926]
[1744335244836,0.4861105,79856.0,79846.0,0.4466965]
[1744335244837,0.3608,79856.0,79846.0,0.4466965]
[1744335245040,0.0626629,79847.0,79846.0,0.4466965]
[1744335245647,0.06587526,79847.0,79846.0,0.4466965]
[1744335246248,0.42667526,79847.0,79846.0,0.4466965]
[1744335246842,0.45737526,79847.0,79846.0,0.4466965]
[1744335248046,0.48787526,79847.0,79846.0,0.4466965]
[1744335249552,0.1253294,79844.0,79840.0,0.0621]
[1744335250343,0.06587526,79847.0,79840.0,0.0621]
[1744335250344,0.00321236,79847.0,79842.0,0.0626655]
[1744335250547,0.12854016,79845.0,79844.0,0.1253294]
[1744335250743,0.00321236,79845.0,79844.0,0.0612]
[1744335251352,0.12854016,79845.0,79844.0,0.0612]
[1744335254152,0.12854016,79845.0,79844.0,0.0551]
[1744335254948,0.0626669,79842.0,79817.0,0.7119926]
[1744335255150,0.00321236,79845.0,79832.0,0.0308]
[1744335255151,0.1253466,79833.0,79832.0,0.0308]
[1744335255357,0.0626789,79826.0,79820.0,0.0306]
[1744335255545,0.0626789,79826.0,79817.0,0.2950926]
[1744335255546,0.1253639,79822.0,79821.0,0.0308]
[1744335255950,0.1564639,79822.0,79821.0,0.0308]
[1744335256151,0.125367,79820.0,79817.0,0.2950926]
[1744335256352,0.125367,79820.0,79815.0,0.0318]
[1744335256559,0.12857936,79820.0,79815.0,0.0318]
[1744335257557,0.12857936,79820.0,79816.0,0.0327]
[1744335259862,0.12857936,79820.0,79819.0,0.12586973]
[1744335260061,0.00321236,79820.0,79819.0,0.12586973]
[1744335260961,0.12857936,79820.0,79819.0,0.00050113]
[1744335268449,0.15977936,79820.0,79819.0,0.00050113]
[1744335269059,0.12857936,79820.0,79819.0,0.00050113]
[1744335270866,0.15967936,79820.0,79819.0,0.00050113]
[1744335274663,0.15967936,79820.0,79814.0,0.00018788]
[1744335274664,0.1253749,79815.0,79814.0,0.00018788]
[1744335275258,0.00321236,79820.0,79819.0,0.1253686]
[1744335275457,0.00018788,79829.0,79828.0,0.1253545]
[1744335275660,0.12554078,79829.0,79828.0,0.3608]
[1744335276664,0.15884078,79829.0,79828.0,0.3608]
[1744335276862,0.15884078,79829.0,79828.0,0.3918]
[1744335277060,0.12554078,79829.0,79828.0,0.3918]
[1744335277767,0.125367,79820.0,79819.0,0.3608]
[1744335278073,0.125367,79820.0,79800.0,0.10187963]
[1744335278074,0.1253717,79817.0,79816.0,0.0329]
[1744335278668,0.1253749,79815.0,79806.0,0.3608]
[1744335278966,0.1253749,79815.0,79807.0,0.0329]
[1744335279162,0.1253749,79815.0,79807.0,0.065]
[1744335279670,0.1253969,79801.0,79800.0,0.1]
[1744335280569,0.1254047,79796.0,79793.0,0.2950926]
[1744335280767,0.49559664,79796.0,79793.0,0.29528048]
[1744335281175,0.1254173,79788.0,79787.0,0.36886575]
[1744335281359,0.4862173,79788.0,79787.0,0.36886575]
[1744335281668,0.49560924,79788.0,79787.0,0.36886575]
[1744335281872,0.13480924,79788.0,79787.0,0.36886575]
[1744335282070,0.19820924,79788.0,79787.0,0.36886575]
[1744335282571,0.13480924,79788.0,79787.0,0.36886575]
[1744335283570,0.13480924,79788.0,79787.0,0.72966575]
[1744335284065,0.13480924,79788.0,79787.0,0.36886575]
[1744335284374,0.00939194,79788.0,79787.0,0.85508465]
[1744335285076,0.13480924,79788.0,79787.0,0.85508465]
[1744335286167,0.13480924,79788.0,79787.0,0.72966575]
[1744335286364,0.13480924,79788.0,79787.0,0.85508465]
[1744335286874,0.13480924,79788.0,79787.0,0.4862189]
[1744335287574,0.13480924,79788.0,79787.0,0.3608]
[1744335288071,0.13480924,79788.0,79787.0,0.5515189]
[1744335288479,0.13480924,79788.0,79787.0,0.4261]
[1744335288975,0.13480924,79788.0,79787.0,0.0653]
[1744335289869,0.19770924,79788.0,79787.0,0.0653]
[1744335291371,0.13480924,79788.0,79787.0,0.4261]
[1744335292767,0.13480924,79788.0,79787.0,0.3608]
[1744335292966,0.16730924,79788.0,79787.0,0.3608]
[1744335294881,0.1254283,79781.0,79780.0,0.00012696]
[1744335295580,0.13482024,79781.0,79780.0,0.00012696]
[1744335295772,0.20012024,79781.0,79780.0,0.00012696]
[1744335298384,0.13482024,79781.0,79780.0,0.00012696]
[1744335299977,0.19712024,79781.0,79780.0,0.00012696]
[1744335300785,0.13482024,79781.0,79780.0,0.00012696]
[1744335302079,0.00939194,79781.0,79780.0,0.12555686]
[1744335302283,0.13482024,79781.0,79780.0,0.12555686]
[1744335302482,0.1254283,79781.0,79780.0,0.12555686]
[1744335302879,0.00939194,79781.0,79780.0,0.12555686]
[1744335303487,0.06271,79787.0,79782.0,0.1881339]
[1744335303488,0.07210264,79786.0,79782.0,0.1881339]
[1744335303685,0.000188,79788.0,79787.0,0.1254189]
[1744335303884,0.000188,79788.0,79787.0,0.3754189]
[1744335304185,0.1256053,79788.0,79787.0,0.3754189]
[1744335304481,0.1254205,79786.0,79785.0,0.3608]
[1744335306577,0.1254205,79786.0,79785.0,0.486222]
[1744335306779,0.1254205,79786.0,79785.0,0.3608]
[1744335308976,0.1254205,79786.0,79785.0,0.486222]
[1744335309685,0.1254205,79786.0,79785.0,0.3608]
[1744335310189,0.1254205,79786.0,79785.0,0.486222]
[1744335310885,0.1254205,79786.0,79785.0,0.3608]
[1744335315378,0.1254283,79781.0,79780.0,0.00012696]
[1744335316291,0.13674564,79781.0,79780.0,0.00012696]
[1744335320193,0.16724564,79781.0,79780.0,0.00012696]
[1744335321889,0.65261734,79781.0,79771.0,0.00050143]
[1744335322097,0.65261734,79781.0,79771.0,3e-08]
[1744335322098,0.1254425,79772.0,79771.0,3e-08]
[1744335322594,0.1905425,79772.0,79771.0,3e-08]
[1744335322797,0.1254425,79772.0,79771.0,3e-08]
[1744335323294,0.1254425,79772.0,79771.0,0.09420003]
[1744335323496,0.13485135,79772.0,79771.0,0.09420003]
[1744335324385,0.1254425,79772.0,79771.0,0.09420003]
[1744335325397,0.18597499,79790.0,79771.0,0.45500003]
[1744335325587,0.18597499,79790.0,79783.0,0.4862252]
[1744335325794,0.18597499,79790.0,79783.0,0.3608]
[1744335326090,0.1254236,79784.0,79783.0,0.3608]
[1744335326489,0.1254236,79784.0,79783.0,0.4552]
[1744335326690,0.2239992,79790.0,79785.0,0.1254214]
[1744335326889,0.1254236,79784.0,79783.0,0.3912]
[1744335327288,0.1254236,79784.0,79783.0,0.5166252]
[1744335327897,0.000188,79788.0,79787.0,0.1254189]
[1744335328390,0.000188,79788.0,79787.0,0.3754189]
[1744335328990,0.000188,79788.0,79787.0,0.3918851]
[1744335329190,0.0626994,79800.0,79798.0,0.1254]
[1744335329492,0.0626994,79800.0,79799.0,0.89565743]
[1744335329689,0.1253882,79807.0,79806.0,0.1253859]
[1744335329901,0.1253882,79807.0,79806.0,0.50300187]
[1744335330099,0.188082,79807.0,79806.0,0.37761527]
[1744335330289,0.188082,79807.0,79806.0,1.3408]
[1744335332495,0.15005466,79808.0,79807.0,0.1253875]
[1744335332701,0.000188,79814.0,79813.0,0.125378]
[1744335332899,0.1255645,79814.0,79813.0,0.50391063]
[1744335335104,0.000188,79814.0,79813.0,0.50391063]
[1744335335403,0.000188,79814.0,79813.0,0.486178]
[1744335335994,0.1255645,79814.0,79813.0,0.50446058]
[1744335336397,0.1255645,79814.0,79813.0,0.3608]
[1744335336591,0.000188,79814.0,79813.0,0.50445322]
[1744335336803,0.0626774,79829.0,79813.0,0.62907522]
[1744335337003,0.1253637,79825.0,79824.0,0.1880358]
[1744335337501,0.1253637,79825.0,79824.0,0.0314]
[1744335338000,0.1253637,79825.0,79824.0,0.1567608]
[1744335338902,0.1253637,79825.0,79824.0,0.0314]
[1744335340403,0.1885637,79825.0,79824.0,0.0314]
[1744335340604,0.1253702,79818.0,79817.0,0.000188]
[1744335341204,0.1253702,79818.0,79806.0,0.00925955]
[1744335341205,0.1253859,79808.0,79807.0,0.0316]
[1744335341504,0.4861859,79808.0,79807.0,0.0316]
[1744335341701,0.4861859,79808.0,79796.0,0.3608]
[1744335341702,0.1254032,79797.0,79796.0,0.3608]
[1744335341907,0.1254032,79797.0,79796.0,0.5178047]
[1744335342104,0.1254047,79796.0,79794.0,0.01438386]
[1744335342405,0.1254047,79796.0,79789.0,0.000188]
[1744335342406,0.17138913,79796.0,79789.0,0.000188]
[1744335342802,0.20258913,79796.0,79789.0,0.000188]
[1744335343309,0.1572047,79796.0,79795.0,0.12590758]
[1744335343898,0.1572047,79796.0,79795.0,0.00050128]
[1744335348208,0.1875047,79796.0,79795.0,0.00050128]
[1744335349308,0.0627092,79788.0,79780.0,0.0312]
[1744335349497,0.1254409,79773.0,79772.0,0.0323]
[1744335349700,0.1254409,79773.0,79772.0,0.1577425]
[1744335350209,0.1254409,79773.0,79772.0,0.0323]
[1744335350397,0.0627194,79775.0,79770.0,0.3608]
[1744335350398,0.1254425,79772.0,79770.0,0.3608]
[1744335350602,0.1254425,79772.0,79771.0,0.15794403]
[1744335350805,0.1254425,79772.0,79771.0,0.19124403]
[1744335350998,0.1254425,79772.0,79771.0,3e-08]
[1744335351206,0.1563425,79772.0,79771.0,3e-08]
[1744335351411,0.1882425,79772.0,79771.0,3e-08]
[1744335352917,0.1254425,79772.0,79771.0,0.18804403]
[1744335353712,0.1254425,79772.0,79771.0,3e-08]
[1744335353906,0.1585425,79772.0,79771.0,3e-08]
[1744335354307,0.1585425,79772.0,79771.0,0.03010003]
[1744335355011,0.1254349,79779.0,79778.0,0.1254315]
[1744335355314,0.000188,79780.0,79779.0,0.1900315]
[1744335356616,0.1256179,79780.0,79779.0,0.1900315]
[1744335356910,0.1256179,79780.0,79779.0,1.0446]
[1744335357113,0.1256179,79780.0,79779.0,0.98]
[1744335357304,0.1256179,79780.0,79779.0,1.1054315]
[1744335357510,0.1882179,79780.0,79779.0,0.98]
[1744335357816,0.1254425,79772.0,79766.0,0.13488446]
[1744335358017,0.1254425,79772.0,79767.0,0.0311]
[1744335358217,0.1254425,79772.0,79765.0,0.98]
[1744335358622,0.1865425,79772.0,79765.0,0.98]
[1744335358811,0.1865425,79772.0,79766.0,0.0627256]
[1744335359009,0.1865425,79772.0,79771.0,0.03110003]
[1744335359204,0.1865425,79772.0,79771.0,3e-08]
[1744335362023,0.20108637,79772.0,79771.0,3e-08]
[1744335362414,0.1865425,79772.0,79771.0,3e-08]
[1744335368731,0.4365425,79772.0,79771.0,3e-08]
[1744335369131,0.1865425,79772.0,79771.0,3e-08]
[1744335369716,0.1558425,79772.0,79771.0,3e-08]
[1744335369925,0.5166425,79772.0,79771.0,3e-08]
[1744335370229,0.1558425,79772.0,79771.0,3e-08]
[1744335370425,0.1254425,79772.0,79771.0,3e-08]
[1744335371032,0.1254425,79772.0,79771.0,0.06270003]
[1744335375229,0.0627144,79781.0,79776.0,0.0627179]
[1744335375529,0.0627088,79788.0,79779.0,0.4862315]
[1744335375726,0.1254188,79788.0,79787.0,0.1254189]
[1744335375933,0.1254188,79788.0,79787.0,0.4862189]
[1744335376129,0.1254188,79788.0,79787.0,0.3608]
[1744335376833,0.0627071,79790.0,79789.0,0.1254157]
[1744335378937,0.18756833,79792.0,79791.0,0.1254126]
[1744335379234,0.125411,79792.0,79791.0,0.1254126]
[1744335379733,0.125411,79792.0,79791.0,0.0639]
[1744335379937,0.0627039,79794.0,79792.0,0.0627049]
[1744335380126,0.0627039,79794.0,79793.0,0.1254095]
[1744335380430,0.0627039,79794.0,79793.0,0.1893095]
[1744335380632,0.0626902,79812.0,79811.0,0.0626899]
[1744335380929,0.3608,79838.0,79822.0,0.1253639]
[1744335381126,0.34949353,79823.0,79822.0,0.7361639]
[1744335381327,0.34949353,79823.0,79822.0,0.3608]
[1744335381727,0.34949353,79823.0,79822.0,1.3408]
[1744335381929,0.34949353,79823.0,79822.0,1.4049]
[1744335382825,0.34949353,79823.0,79822.0,1.5302639]
[1744335383836,0.34949353,79823.0,79822.0,1.4049]
[1744335384133,0.34949353,79823.0,79822.0,0.4249]
[1744335384336,0.1253623,79823.0,79822.0,0.4249]
[1744335384723,0.1871623,79823.0,79822.0,0.4249]
[1744335386923,0.1253733,79816.0,79815.0,0.000188]
[1744335387127,0.4861733,79816.0,79815.0,0.000188]
[1744335387733,0.5166733,79816.0,79815.0,0.000188]
[1744335387935,0.5166733,79816.0,79815.0,0.032788]
[1744335388841,0.2191488,79823.0,79822.0,0.1253639]
[1744335389137,0.43796565,79838.0,79822.0,0.3608]
[1744335389433,0.1253552,79828.0,79827.0,0.1253557]
[1744335390031,0.1253608,79826.0,79825.0,0.1253588]
[1744335390737,0.0626766,79829.0,79828.0,0.1253545]
[1744335391032,0.1255393,79830.0,79829.0,0.1253529]
[1744335391234,0.1255393,79830.0,79829.0,0.4861529]
[1744335391435,0.000188,79830.0,79829.0,0.4861529]
[1744335391635,0.0004,79842.0,79841.0,0.1253341]
[1744335391824,0.0004,79842.0,79841.0,0.4861341]
[1744335392030,0.1257325,79842.0,79841.0,0.5497341]
[1744335392426,0.1257325,79842.0,79841.0,0.5592539]
[1744335393738,0.0004,79842.0,79841.0,0.5592539]
[1744335393938,0.1257325,79842.0,79841.0,0.5592539]
[1744335394333,0.1257325,79842.0,79841.0,0.4339198]
[1744335395238,0.1257325,79842.0,79841.0,0.5592539]
[1744335397437,0.1257325,79842.0,79841.0,0.4339198]
[1744335397635,0.1257325,79842.0,79841.0,0.3608]
[1744335398339,0.1572325,79842.0,79841.0,0.3608]
[1744335398638,0.1253435,79835.0,79834.0,0.00018787]
[1744335399030,0.4861435,79835.0,79834.0,0.00018787]
[1744335399432,0.5492435,79835.0,79834.0,0.00018787]
[1744335399943,0.0626764,79830.0,79812.0,0.1253783]
[1744335400238,0.0626764,79830.0,79810.0,0.5824403]
[1744335400239,0.1253717,79817.0,79816.0,0.0316]
[1744335401041,0.1882717,79817.0,79816.0,0.0316]
[1744335401227,0.1882717,79817.0,79816.0,0.1569733]
[1744335401437,0.1566717,79817.0,79816.0,0.1881733]
[1744335401938,0.1566717,79817.0,79816.0,0.0628]
[1744335402545,0.0004,79842.0,79816.0,0.7297]
[1744335402746,0.125356,79827.0,79826.0,0.3608]
[1744335402940,0.062677,79829.0,79828.0,0.1253545]
[1744335403443,0.125356,79827.0,79826.0,0.3608]
[1744335403639,0.125356,79827.0,79826.0,0.4861576]
[1744335404743,0.125356,79827.0,79826.0,0.3608]
[1744335404931,0.0311,79827.0,79821.0,0.00018787]
[1744335405132,0.1253639,79822.0,79821.0,0.00018787]
[1744335408652,0.125314,79854.0,79841.0,0.1253341]
[1744335408849,0.0313,79855.0,79850.0,0.1253199]
[1744335409149,0.0313,79855.0,79850.0,0.4861199]
[1744335409538,0.1566123,79855.0,79850.0,0.4861199]
[1744335409741,0.0313,79855.0,79850.0,0.4861199]
[1744335410949,0.0313,79855.0,79854.0,0.1253137]
[1744335411747,0.00018787,79858.0,79857.0,0.1253089]
[1744335412045,0.00018787,79858.0,79857.0,0.4861089]
[1744335413252,0.00018787,79858.0,79857.0,0.49569644]
[1744335415154,0.00018787,79858.0,79857.0,0.51223245]
[1744335415847,0.1,79900.0,79863.0,0.0626492]
[1744335416058,0.0626223,79898.0,79889.0,0.1252588]
[1744335416267,0.1,79900.0,79889.0,0.8468588]
[1744335416561,0.1,79900.0,79893.0,0.1252525]
[1744335417357,0.27391936,79894.0,79893.0,0.1252525]
[1744335417557,0.14866846,79894.0,79893.0,0.1252525]
[1744335420463,0.1552463,79897.0,79896.0,0.1252478]
[1744335420659,0.1552463,79897.0,79896.0,0.3608]
[1744335421652,0.1552463,79897.0,79896.0,0.4860478]
[1744335423253,0.1552463,79897.0,79896.0,0.5161478]
[1744335423457,0.1,79900.0,79899.0,0.1252431]
[1744335423653,0.1,79900.0,79899.0,0.4860431]
[1744335425061,0.1,79900.0,79899.0,0.8468431]
[1744335425849,0.1,79900.0,79899.0,0.73080741]
[1744335426055,0.2252415,79900.0,79899.0,0.85605051]
[1744335426254,0.2893415,79900.0,79899.0,0.73080741]
[1744335427757,0.2893415,79900.0,79899.0,0.7216]
[1744335427967,0.1252556,79891.0,79890.0,0.3608]
[1744335428161,0.1252619,79887.0,79881.0,0.3608]
[1744335428555,0.1252697,79882.0,79881.0,0.3608]
[1744335428961,0.1252697,79882.0,79881.0,0.3109]
[1744335429674,0.1553697,79882.0,79881.0,0.3109]
[1744335429965,0.1553697,79882.0,79881.0,0.261]
[1744335429966,0.4053697,79882.0,79881.0,0.261]
[1744335430156,0.1252807,79875.0,79874.0,0.00018775]
[1744335430362,0.4860807,79875.0,79874.0,0.00018775]
[1744335430561,0.7360807,79875.0,79874.0,0.00018775]
[1744335430762,0.38475319,79875.0,79874.0,0.00018775]
[1744335430967,0.44725319,79875.0,79874.0,0.00018775]
[1744335431266,0.19725319,79875.0,79874.0,0.36098775]
[1744335434068,0.07197249,79875.0,79874.0,0.48627005]
[1744335434256,0.19725319,79875.0,79874.0,0.48627005]
[1744335434655,0.00947249,79875.0,79874.0,0.48627005]
[1744335435569,0.00947249,79880.0,79879.0,0.1252744]
[1744335435869,0.13474539,79880.0,79879.0,0.1252744]
[1744335436162,0.1252729,79880.0,79879.0,0.1252744]
[1744335436367,0.1873729,79880.0,79879.0,0.1252744]
[1744335436765,0.1252807,79875.0,79874.0,0.48626755]
[1744335436977,0.13515982,79875.0,79874.0,0.48626755]
[1744335440465,0.13515982,79875.0,79874.0,0.36098775]
[1744335440969,0.13515982,79875.0,79874.0,0.48627005]
[1744335447169,0.16595982,79875.0,79874.0,0.48627005]
[1744335448971,0.16595982,79875.0,79874.0,0.36098775]
[1744335450482,0.19865982,79875.0,79874.0,0.36098775]
[1744335451468,0.44865982,79875.0,79874.0,0.36098775]
[1744335452069,0.19865982,79875.0,79874.0,0.36098775]
[1744335452375,0.44865982,79875.0,79874.0,0.36098775]
[1744335452573,0.44865982,79875.0,79867.0,0.00050083]
[1744335452574,0.1252917,79868.0,79867.0,0.00050083]
[1744335452971,0.1253074,79858.0,79857.0,0.2216403]
[1744335453372,0.13897868,79858.0,79857.0,0.2216403]